[Event "21st Sants Open 2019"]
[Site "Cotxeres de Sants"]
[Date "2019.08.26"]
[Round "4.16"]
[White "Rios Torondell, Jaume"]
[Black "Carmona Huertas, Juan Antonio"]
[Result "1-0"]
[ECO "A00"]
[WhiteElo "1891"]
[BlackElo "1930"]
[Annotator "NA"]
[PlyCount "133"]
[EventDate "2019.08.22"]
[EventType "swiss"]
[EventCountry "ESP"]
[SourceTitle "playchess.com"]
[Source "ChessBase"]
[SourceQuality "1"]
[TimeControl "40/5400+30:1800+30"]

1. g4 {[%emt 0:10:40]} d5 {[%emt 0:02:05]} 2. Bg2 {[%emt 0:00:39]} c6 {[%emt 0:00:11]} 3. h3 {[%emt 0:00:17]} e5 {[%emt 0:00:39]} 4. c4 {[%emt 0:03:01]} d4 {[%emt 0:05:21]} 5. d3 {[%emt 0:05:26]} Bd6 {[%emt 0:02:33]} 6. Nf3 {[%emt 0:00:53]} Ne7 {[%emt 0:00:35]} 7. O-O {[%emt 0:06:38]} h5 {[%emt 0:02:53]} 8. g5 {[%emt 0:05:02]} h4 {[%emt 0:02:47]} 9. Nbd2 {[%emt 0:03:35]} Nd7 {[%emt 0:08:57]} 10. Ne4 {[%emt 0:01:02]} Nf8 {[%emt 0:00:27]} 11. e3 {[%emt 0:08:51]} Ne6 {[%emt 0:00:41]} 12. exd4 {[%emt 0:02:08]} exd4 {[%emt 0:00:14]} 13. Nxd6+ {[%emt 0:01:02]} Qxd6 {[%emt 0:00:07]} 14. Re1 {[%emt 0:00:12]} Ng6 {[%emt 0:02:50]} 15. b4 {[%emt 0:04:36]} O-O {[%emt 0:18:57]} 16. c5 {[%emt 0:05:11]} Qc7 {[%emt 0:00:01]} 17. Re4 {[%emt 0:00:32]} Nef4 18. Bxf4 {[%emt 0:03:23]} Nxf4 {[%emt 0:06:33]} 19. Nxd4 {[%emt 0:01:55]} Bxh3 {[%emt 0:02:05]} 20. Bxh3 {[%emt 0:05:32]} Nxh3+ {[%emt 0:00:01]} 21. Kg2 {[%emt 0:00:19]} Nf4+ {[%emt 0:08:28]} 22. Kh1 {[%emt 0:00:44]} Rfe8 {[%emt 0:21:13]} 23. Qf3 {[%emt 0:00:07]} Rxe4 {[%emt 0:02:21]} 24. Qxe4 {[%emt 0:00:40]} Rd8 {[%emt 0:02:15]} 25. Re1 {[%emt 0:07:37]} Qd7 {[%emt 0:04:58]} 26. Qxf4 {[%emt 0:00:36]} Qh3+ {[%emt 0:03:55]} 27. Kg1 {[%emt 0:00:07]} Rd5 {[%emt 0:00:33]} 28. Re8+ {[%emt 0:03:31]} Kh7 {[%emt 0:00:01]} 29. Re5 {[%emt 0:00:40]} Rxe5 {[%emt 0:01:31]} 30. Qxe5 {[%emt 0:00:08]} Qg4+ {[%emt 0:00:40]} 31. Kh2 {[%emt 0:00:02]} g6 {[%emt 0:00:39]} 32. f3 {[%emt 0:01:56]} Qd7 {[%emt 0:00:24]} 33. Qd6 {[%emt 0:00:47]} Qe8 {[%emt 0:00:40]} 34. Qf4 {[%emt 0:00:19]} Kg8 {[%emt 0:00:51]} 35. Qe4 {[%emt 0:01:49]} Qd7 {[%emt 0:00:26]} 36. f4 {[%emt 0:00:31]} Qg4 {[%emt 0:00:26]} 37. Qf3 {[%emt 0:00:26]} Qd7 {[%emt 0:00:24]} 38. Qf2 {[%emt 0:03:13]} h3 {[%emt 0:00:38]} 39. f5 {[%emt 0:00:32]} Qd5 {[%emt 0:00:33]} 40. fxg6 {[%emt 0:00:00]} fxg6 {[%emt 0:00:00]} 41. Kxh3 {[%emt 0:02:08]} Qxg5 {[%emt 0:01:53]} 42. Qf3 {[%emt 0:09:31]} Qh6+ {[%emt 0:01:00]} 43. Kg3 {[%emt 0:05:20]} Qg5+ {[%emt 0:01:33]} 44. Qg4 {[%emt 0:00:02]} Qe5+ {[%emt 0:00:16]} 45. Kf3 {[%emt 0:02:02]} Qd5+ {[%emt 0:01:08]} 46. Ke3 {[%emt 0:00:29]} Qe5+ {[%emt 0:01:36]} 47. Kd2 {[%emt 0:01:34]} Kg7 {[%emt 0:04:50]} 48. Qe4 {[%emt 0:02:53]} Qh2+ {[%emt 0:02:39]} 49. Qe2 {[%emt 0:02:27]} Qf4+ {[%emt 0:01:07]} 50. Qe3 {[%emt 0:05:19]} Qh2+ {[%emt 0:01:14]} 51. Ne2 {[%emt 0:00:02]} Qc7 {[%emt 0:03:00]} 52. Qd4+ {[%emt 0:02:21]} Kh7 {[%emt 0:00:40]} 53. Qd6 {[%emt 0:00:53]} Qf7 {[%emt 0:00:01]} 54. Qh2+ {[%emt 0:02:04]} Kg7 {[%emt 0:00:39]} 55. Nc3 {[%emt 0:00:35]} g5 {[%emt 0:02:59]} 56. Qe5+ {[%emt 0:00:14]} Kg6 {[%emt 0:00:49]} 57. Ne4 {[%emt 0:01:10]} Qxa2+ {[%emt 0:01:45]} 58. Ke3 {[%emt 0:00:20]} Qg2 {[%emt 0:01:20]} 59. Qf6+ {[%emt 0:00:36]} Kh5 {[%emt 0:00:09]} 60. Qf3+ {[%emt 0:01:36]} Qxf3+ {[%emt 0:00:51]} 61. Kxf3 {[%emt 0:00:02]} b6 {[%emt 0:01:34]} 62. Kg3 {[%emt 0:01:04]} bxc5 {[%emt 0:01:11]} 63. Nxc5 {[%emt 0:00:16]} g4 {[%emt 0:00:09]} 64. Na6 {[%emt 0:01:27]} Kg5 {[%emt 0:00:07]} 65. Nb8 {[%emt 0:00:07]} c5 {[%emt 0:00:44]} 66. bxc5 {[%emt 0:00:48]} Kf6 {[%emt 0:00:37]} 67. c6 {[%emt 0:00:07]} 1-0

[Event "21st Sants Open 2019"]
[Site "Cotxeres de Sants"]
[Date "2019.08.26"]
[Round "4.17"]
[White "Delgadillo Torrico, Felipe"]
[Black "Planella Sanchez, Jordi"]
[Result "1/2-1/2"]
[ECO "A49"]
[WhiteElo "1867"]
[BlackElo "1919"]
[Annotator "NA"]
[PlyCount "150"]
[EventDate "2019.08.22"]
[EventType "swiss"]
[EventCountry "ESP"]
[SourceTitle "playchess.com"]
[Source "ChessBase"]
[SourceQuality "1"]
[TimeControl "40/5400+30:1800+30"]

1. d4 {[%emt 0:21:44]} Nf6 {[%emt 0:00:54]} 2. Nf3 {[%emt 0:00:08]} g6 {[%emt 0:02:44]} 3. g3 {[%emt 0:00:14]} Bg7 {[%emt 0:00:10]} 4. Bg2 {[%emt 0:00:05]} O-O {[%emt 0:00:22]} 5. c4 {[%emt 0:00:07]} c6 {[%emt 0:05:15]} 6. O-O {[%emt 0:01:04]} d6 {[%emt 0:02:12]} 7. Nc3 {[%emt 0:00:38]} Qc7 {[%emt 0:02:52]} 8. e4 {[%emt 0:03:27]} e5 {[%emt 0:01:35]} 9. h3 {[%emt 0:03:59]} b6 {[%emt 0:09:49]} 10. Re1 {[%emt 0:01:09]} Bb7 {[%emt 0:00:58]} 11. b3 {[%emt 0:05:26]} Re8 {[%emt 0:12:31]} 12. dxe5 {[%emt 0:05:21]} dxe5 {[%emt 0:10:12]} 13. Qe2 {[%emt 0:02:14]} Na6 {[%emt 0:02:13]} 14. Ba3 {[%emt 0:05:35]} Rad8 {[%emt 0:00:30]} 15. Rad1 {[%emt 0:01:16]} Bf8 {[%emt 0:02:17]} 16. Bxf8 {[%emt 0:05:08]} Kxf8 {[%emt 0:01:24]} 17. Rxd8 {[%emt 0:01:00]} Rxd8 {[%emt 0:00:17]} 18. Rd1 {[%emt 0:00:24]} Rxd1+ {[%emt 0:00:26]} 19. Qxd1 {[%emt 0:00:29]} Nc5 {[%emt 0:00:32]} 20. Ne1 {[%emt 0:02:12]} Qd7 {[%emt 0:01:32]} 21. Qxd7 {[%emt 0:00:28]} Nfxd7 {[%emt 0:01:09]} 22. h4 {[%emt 0:02:03]} Ke7 {[%emt 0:02:15]} 23. Bh3 {[%emt 0:01:49]} Nf8 {[%emt 0:03:53]} 24. f3 {[%emt 0:02:24]} Nce6 {[%emt 0:01:32]} 25. Kf2 {[%emt 0:00:42]} Nd4 {[%emt 0:06:56]} 26. Ke3 {[%emt 0:01:51]} Nfe6 {[%emt 0:00:53]} 27. f4 {[%emt 0:05:10]} f6 {[%emt 0:06:12]} 28. fxe5 {[%emt 0:03:43]} fxe5 {[%emt 0:00:02]} 29. Nd3 {[%emt 0:16:24]} Kd6 {[%emt 0:06:11]} 30. Bg4 {[%emt 0:00:40]} Nc5 {[%emt 0:03:34]} 31. Bd1 {[%emt 0:01:18]} Nxd3 {[%emt 0:00:28]} 32. Kxd3 {[%emt 0:00:12]} Bc8 {[%emt 0:00:12]} 33. Na4 {[%emt 0:02:15]} Be6 {[%emt 0:05:47]} 34. Nb2 {[%emt 0:01:18]} Bd7 {[%emt 0:02:55]} 35. Kc3 {[%emt 0:01:32]} Bh3 {[%emt 0:01:17]} 36. Nd3 {[%emt 0:01:08]} Bf1 {[%emt 0:02:15]} 37. Kd2 {[%emt 0:00:35]} Bxd3 {[%emt 0:00:32]} 38. Kxd3 {[%emt 0:00:09]} Kc5 {[%emt 0:01:04]} 39. Kc3 {[%emt 0:00:30]} a5 {[%emt 0:01:09]} 40. a3 {[%emt 0:00:00]} Kd6 {[%emt 0:00:00]} 41. b4 {[%emt 0:00:38]} axb4+ {[%emt 0:01:05]} 42. axb4 {[%emt 0:00:14]} Ne6 {[%emt 0:02:58]} 43. Kd3 {[%emt 0:03:53]} Ke7 {[%emt 0:02:02]} 44. Ke3 {[%emt 0:00:19]} Kf6 {[%emt 0:00:43]} 45. Bg4 {[%emt 0:11:34]} Nd4 {[%emt 0:01:44]} 46. Kd3 {[%emt 0:00:54]} g5 {[%emt 0:01:36]} 47. h5 {[%emt 0:11:39]} Kf7 {[%emt 0:07:31]} 48. Bd7 {[%emt 0:01:47]} Ke7 {[%emt 0:01:08]} 49. Bg4 {[%emt 0:00:55]} Kf6 {[%emt 0:01:15]} 50. Bc8 {[%emt 0:01:31]} Nb3 {[%emt 0:04:17]} 51. g4 {[%emt 0:01:02]} Nd4 52. Kc3 {[%emt 0:01:05]} h6 {[%emt 0:03:21]} 53. Bd7 {[%emt 0:01:02]} Ke7 {[%emt 0:00:18]} 54. Bf5 {[%emt 0:00:40]} Ne2+ {[%emt 0:00:36]} 55. Kd3 {[%emt 0:01:32]} Nf4+ {[%emt 0:00:08]} 56. Ke3 {[%emt 0:00:44]} Kd6 {[%emt 0:00:06]} 57. Kd2 {[%emt 0:00:41]} Kc7 {[%emt 0:00:19]} 58. Kc2 {[%emt 0:00:20]} Kb7 {[%emt 0:00:13]} 59. Kb3 {[%emt 0:00:10]} Nh3 {[%emt 0:00:08]} 60. Kc3 {[%emt 0:00:49]} Nf2 {[%emt 0:00:11]} 61. Kd2 {[%emt 0:00:24]} Ka6 {[%emt 0:00:57]} 62. Bc8+ {[%emt 0:00:09]} Ka7 {[%emt 0:00:04]} 63. Bf5 {[%emt 0:00:08]} Kb7 {[%emt 0:00:20]} 64. Ke2 {[%emt 0:00:14]} Nh3 {[%emt 0:00:10]} 65. Ke3 {[%emt 0:00:23]} Nf4 {[%emt 0:00:38]} 66. Kd2 {[%emt 0:00:32]} Kc7 {[%emt 0:00:10]} 67. Ke3 {[%emt 0:00:51]} Kd6 {[%emt 0:01:15]} 68. Kd2 {[%emt 0:00:26]} Ng2 {[%emt 0:01:01]} 69. Ke2 {[%emt 0:00:22]} Kc7 {[%emt 0:00:37]} 70. Kf2 {[%emt 0:01:02]} Nf4 {[%emt 0:00:17]} 71. Ke3 {[%emt 0:00:08]} Kb7 {[%emt 0:01:22]} 72. Kd2 {[%emt 0:00:23]} Ka7 {[%emt 0:00:17]} 73. Ke3 {[%emt 0:00:09]} Kb7 {[%emt 0:00:32]} 74. Kd2 {[%emt 0:00:10]} c5 {[%emt 0:00:16]} 75. b5 {[%emt 0:01:45]} Kc7 {[%emt 0:00:35]} 1/2-1/2

[Event "21st Sants Open 2019"]
[Site "Cotxeres de Sants"]
[Date "2019.08.26"]
[Round "4.18"]
[White "Perla, Ilan"]
[Black "Vadillo, Torre Ismael"]
[Result "0-1"]
[ECO "C28"]
[WhiteElo "1551"]
[BlackElo "1616"]
[Annotator "NA"]
[PlyCount "92"]
[EventDate "2019.08.22"]
[EventType "swiss"]
[EventCountry "ESP"]
[SourceTitle "playchess.com"]
[Source "ChessBase"]
[SourceQuality "1"]
[TimeControl "40/5400+30:1800+30"]

1. e4 {[%emt 0:00:00]} e5 {[%emt 0:00:00]} 2. Nc3 {[%emt 0:00:00]} Nc6 {[%emt 0:00:56]} 3. Bc4 {[%emt 0:00:11]} Nf6 {[%emt 0:01:19]} 4. d3 {[%emt 0:01:48]} Be7 {[%emt 0:04:45]} 5. Nge2 {[%emt 0:07:38]} d6 {[%emt 0:02:23]} 6. O-O {[%emt 0:07:22]} Na5 {[%emt 0:05:47]} 7. Bd5 {[%emt 0:04:49]} O-O {[%emt 0:12:36]} 8. a4 {[%emt 0:03:21]} Nxd5 {[%emt 0:01:04]} 9. Nxd5 {[%emt 0:00:28]} f5 {[%emt 0:04:59]} 10. b4 {[%emt 0:11:16]} Nc6 {[%emt 0:00:48]} 11. b5 {[%emt 0:05:33]} Nb8 {[%emt 0:04:32]} 12. exf5 {[%emt 0:19:24]} Bxf5 {[%emt 0:00:58]} 13. Ng3 {[%emt 0:00:42]} Be6 {[%emt 0:07:40]} 14. Nxe7+ {[%emt 0:00:39]} Qxe7 {[%emt 0:00:16]} 15. d4 {[%emt 0:03:25]} Bc4 {[%emt 0:09:45]} 16. Re1 {[%emt 0:03:23]} Qf7 {[%emt 0:01:06]} 17. Be3 {[%emt 0:01:29]} Nd7 {[%emt 0:01:10]} 18. Ne4 {[%emt 0:06:13]} Qg6 {[%emt 0:06:15]} 19. Nd2 {[%emt 0:04:19]} Bd5 {[%emt 0:02:45]} 20. f3 {[%emt 0:00:11]} Be6 {[%emt 0:04:31]} 21. c4 {[%emt 0:05:04]} exd4 {[%emt 0:12:57]} 22. Bxd4 {[%emt 0:00:58]} Rf4 {[%emt 0:01:31]} 23. Re4 {[%emt 0:09:30]} Rxe4 {[%emt 0:02:09]} 24. fxe4 {[%emt 0:00:59]} Bh3 {[%emt 0:02:26]} 25. Qf3 {[%emt 0:00:46]} Be6 {[%emt 0:01:06]} 26. Rf1 {[%emt 0:01:34]} Rf8 {[%emt 0:02:34]} 27. Qe2 {[%emt 0:01:00]} Rxf1+ {[%emt 0:00:53]} 28. Nxf1 {[%emt 0:00:46]} Qf7 {[%emt 0:00:52]} 29. Nd2 {[%emt 0:00:17]} b6 {[%emt 0:01:21]} 30. Qd3 {[%emt 0:01:10]} Qh5 {[%emt 0:01:25]} 31. Nf3 {[%emt 0:00:39]} Qf7 {[%emt 0:00:37]} 32. Nd2 {[%emt 0:00:09]} Qf4 {[%emt 0:01:20]} 33. Be3 {[%emt 0:00:54]} Qf6 {[%emt 0:00:34]} 34. Bd4 {[%emt 0:00:17]} Qf7 {[%emt 0:01:02]} 35. Qe2 {[%emt 0:00:11]} Qf4 {[%emt 0:00:36]} 36. Be3 {[%emt 0:00:12]} Qe5 {[%emt 0:00:19]} 37. Qf3 {[%emt 0:01:22]} Qa1+ {[%emt 0:00:40]} 38. Qf1 {[%emt 0:00:28]} Qxf1+ {[%emt 0:00:40]} 39. Kxf1 {[%emt 0:00:09]} Ne5 {[%emt 0:00:20]} 40. Bd4 {[%emt 0:00:00]} Nxc4 {[%emt 0:00:00]} 41. Nb1 {[%emt 0:05:15]} Kf7 {[%emt 0:03:51]} 42. Ke2 {[%emt 0:02:26]} g6 {[%emt 0:02:26]} 43. Kd3 {[%emt 0:02:16]} Na5 {[%emt 0:00:24]} 44. Kc3 {[%emt 0:06:27]} Bb3 {[%emt 0:09:51]} 45. Kb4 {[%emt 0:03:44]} Be6 {[%emt 0:02:14]} 46. Nc3 {[%emt 0:01:18]} c5+ {[%emt 0:02:25]} 0-1

[Event "21st Sants Open 2019"]
[Site "Cotxeres de Sants"]
[Date "2019.08.26"]
[Round "4.19"]
[White "Paton Alvarez, Ivan"]
[Black "Moya Sarda, Amadeu"]
[Result "1-0"]
[ECO "B90"]
[WhiteElo "1544"]
[BlackElo "1607"]
[Annotator "NA"]
[PlyCount "47"]
[EventDate "2019.08.22"]
[EventType "swiss"]
[EventCountry "ESP"]
[SourceTitle "playchess.com"]
[Source "ChessBase"]
[SourceQuality "1"]
[TimeControl "40/5400+30:1800+30"]

1. e4 {[%emt 0:00:00]} c5 {[%emt 0:00:00]} 2. Nf3 {[%emt 0:00:00]} d6 {[%emt 0:00:05]} 3. d4 {[%emt 0:00:00]} cxd4 {[%emt 0:00:15]} 4. Nxd4 {[%emt 0:00:00]} Nf6 {[%emt 0:00:11]} 5. Nc3 {[%emt 0:00:01]} a6 {[%emt 0:00:15]} 6. h3 {[%emt 0:00:16]} e5 {[%emt 0:02:10]} 7. Nb3 {[%emt 0:04:24]} Be6 {[%emt 0:02:02]} 8. Bg5 {[%emt 0:02:24]} Be7 {[%emt 0:01:25]} 9. Bxf6 {[%emt 0:00:17]} Bxf6 {[%emt 0:00:50]} 10. Be2 {[%emt 0:04:43]} O-O {[%emt 0:04:57]} 11. Nd5 {[%emt 0:02:31]} Bg5 {[%emt 0:04:29]} 12. O-O {[%emt 0:01:27]} f5 {[%emt 0:06:38]} 13. exf5 {[%emt 0:02:10]} Bxf5 {[%emt 0:00:58]} 14. f4 {[%emt 0:10:49]} exf4 {[%emt 0:05:58]} 15. Nxf4 {[%emt 0:01:54]} Qb6+ {[%emt 0:25:32]} 16. Kh1 {[%emt 0:03:47]} Be4 {[%emt 0:04:21]} 17. Bc4+ {[%emt 0:01:51]} Kh8 {[%emt 0:00:52]} 18. Ng6+ {[%emt 0:00:35]} hxg6 {[%emt 0:00:53]} 19. Rxf8+ {[%emt 0:00:07]} Kh7 {[%emt 0:00:56]} 20. Bg8+ {[%emt 0:01:41]} Kh6 {[%emt 0:01:27]} 21. Bd5 {[%emt 0:01:18]} Bxg2+ {[%emt 0:08:39]} 22. Bxg2 {[%emt 0:00:09]} Kh7 {[%emt 0:03:24]} 23. Qd5 {[%emt 0:01:53]} Bf6 {[%emt 0:02:21]} 24. Be4 {[%emt 0:00:41]} 1-0

[Event "21st Sants Open 2019"]
[Site "Cotxeres de Sants"]
[Date "2019.08.27"]
[Round "5.1"]
[White "Valenzuela Gomez, Fernando"]
[Black "Puranik, Abhimanyu"]
[Result "0-1"]
[ECO "A50"]
[WhiteElo "2388"]
[BlackElo "2550"]
[Annotator "ChessBase"]
[PlyCount "94"]
[EventDate "2019.08.22"]
[EventType "swiss"]
[EventCountry "ESP"]
[SourceTitle "playchess.com"]
[Source "ChessBase"]
[SourceQuality "1"]
[TimeControl "40/5400+30:1800+30"]

1. d4 {[%emt 0:09:26]} Nf6 {[%emt 0:00:00]} 2. c4 {[%emt 0:00:04]} g6 {[%emt 0:00:00]} 3. h4 {[%emt 0:00:02]} c6 {[%emt 0:00:30]} 4. Nc3 {[%emt 0:00:15]} d5 {[%emt 0:00:04]} 5. cxd5 {[%emt 0:00:04]} cxd5 {[%emt 0:00:10]} 6. Bf4 {[%emt 0:00:11]} Nc6 {[%emt 0:03:23]} 7. e3 {[%emt 0:00:22]} Bg7 {[%emt 0:02:02]} 8. Be2 {[%emt 0:00:05]} Ne4 {[%emt 0:06:10]} 9. h5 {[%emt 0:01:17]} g5 {[%emt 0:07:57]} 10. h6 {[%emt 0:09:45]} Bf8 {[%emt 0:12:44]} 11. Bh2 {[%emt 0:09:56]} e6 {[%emt 0:14:40]} 12. Nf3 {[%emt 0:16:50]} g4 {[%emt 0:03:15]} 13. Ne5 {[%emt 0:02:38]} g3 {[%emt 0:02:23]} 14. Bxg3 {[%emt 0:14:58]} Nxg3 {[%emt 0:01:07]} 15. fxg3 {[%emt 0:02:24]} Nxe5 {[%emt 0:01:59]} 16. dxe5 {[%emt 0:00:08]} Bd7 {[%emt 0:01:37]} 17. Bh5 {[%emt 0:03:35]} Qg5 {[%emt 0:03:04]} 18. O-O {[%emt 0:06:22]} Bc5 {[%emt 0:05:03]} 19. Bxf7+ {[%emt 0:02:37]} Ke7 {[%emt 0:01:40]} 20. Qh5 {[%emt 0:06:21]} Bxe3+ {[%emt 0:00:47]} 21. Kh2 {[%emt 0:00:18]} Qxh6 {[%emt 0:04:37]} 22. Rae1 {[%emt 0:01:24]} Raf8 {[%emt 0:05:34]} 23. Ne2 {[%emt 0:01:07]} Qxh5+ {[%emt 0:02:32]} 24. Bxh5 {[%emt 0:00:07]} Rxf1 {[%emt 0:03:39]} 25. Rxf1 {[%emt 0:00:03]} Rf8 {[%emt 0:00:42]} 26. Rxf8 {[%emt 0:03:46]} Kxf8 {[%emt 0:00:10]} 27. Kh3 {[%emt 0:02:35]} Ke7 {[%emt 0:03:40]} 28. Kg4 {[%emt 0:02:10]} Bb5 {[%emt 0:00:54]} 29. Nc3 {[%emt 0:00:04]} Bc6 {[%emt 0:00:37]} 30. Nd1 {[%emt 0:01:09]} Bh6 {[%emt 0:02:21]} 31. Kf3 {[%emt 0:00:34]} d4+ {[%emt 0:02:09]} 32. Ke2 {[%emt 0:00:07]} Bg7 {[%emt 0:00:54]} 33. Bf3 {[%emt 0:01:21]} Bb5+ {[%emt 0:00:27]} 34. Kd2 {[%emt 0:01:13]} Bxe5 {[%emt 0:01:00]} 35. Bxb7 {[%emt 0:00:44]} Bxg3 {[%emt 0:00:10]} 36. b3 {[%emt 0:01:07]} Kd6 {[%emt 0:00:43]} 37. Nb2 {[%emt 0:01:00]} Bf4+ {[%emt 0:03:54]} 38. Kc2 {[%emt 0:00:05]} Bc6 {[%emt 0:03:24]} 39. Bxc6 {[%emt 0:01:31]} Kxc6 {[%emt 0:00:03]} 40. Kd3 {[%emt 0:00:00]} Kd5 {[%emt 0:00:00]} 41. Nd1 {[%emt 0:06:34]} Bg3 {[%emt 0:00:39]} 42. Ke2 {[%emt 0:00:14]} e5 {[%emt 0:00:16]} 43. Kf3 {[%emt 0:00:24]} Be1 {[%emt 0:00:36]} 44. Nf2 {[%emt 0:03:10]} Bxf2 {[%emt 0:00:06]} 45. Kxf2 {[%emt 0:00:04]} e4 {[%emt 0:00:33]} 46. a3 {[%emt 0:00:18]} d3 {[%emt 0:00:15]} 47. Ke3 {[%emt 0:00:16]} Ke5 {Kd4+} 0-1

[Event "21st Sants Open 2019"]
[Site "Cotxeres de Sants"]
[Date "2019.08.27"]
[Round "5.3"]
[White "Arjun Kalyan"]
[Black "Gines Esteo, Pedro Antonio"]
[Result "1-0"]
[ECO "B12"]
[WhiteElo "2482"]
[BlackElo "2417"]
[Annotator "ChessBase"]
[PlyCount "79"]
[EventDate "2019.08.22"]
[EventType "swiss"]
[EventCountry "ESP"]
[SourceTitle "playchess.com"]
[Source "ChessBase"]
[SourceQuality "1"]
[TimeControl "40/5400+30:1800+30"]

1. e4 {[%emt 0:00:00]} c6 {[%emt 0:00:00]} 2. d4 {[%emt 0:00:00]} d5 {[%emt 0:00:02]} 3. e5 {[%emt 0:00:00]} Bf5 {[%emt 0:00:06]} 4. h4 {[%emt 0:00:00]} h5 {[%emt 0:00:28]} 5. Bd3 {[%emt 0:00:13]} Bxd3 {[%emt 0:00:05]} 6. Qxd3 {[%emt 0:00:09]} e6 {[%emt 0:00:02]} 7. Bg5 {[%emt 0:00:35]} Be7 {[%emt 0:00:18]} 8. Nf3 {[%emt 0:00:45]} Nh6 {[%emt 0:00:05]} 9. Bxh6 {[%emt 0:00:24]} Rxh6 {[%emt 0:00:06]} 10. c4 {[%emt 0:00:22]} dxc4 {[%emt 0:23:29]} 11. Qxc4 {[%emt 0:00:11]} Nd7 {[%emt 0:00:02]} 12. Nc3 {[%emt 0:05:06]} Nb6 {[%emt 0:00:05]} 13. Qb3 {[%emt 0:02:56]} Rg6 {[%emt 0:03:11]} 14. g3 {[%emt 0:01:27]} Rg4 {[%emt 0:03:47]} 15. O-O-O {[%emt 0:12:31]} a5 {[%emt 0:00:39]} 16. Qc2 {[%emt 0:11:43]} a4 {[%emt 0:18:52]} 17. Qh7 {[%emt 0:06:54]} Nd5 {[%emt 0:11:12]} 18. Qg8+ {[%emt 0:19:57]} Bf8 {[%emt 0:09:51]} 19. Ne4 {[%emt 0:01:11]} Rxe4 {[%emt 0:07:48]} 20. Ng5 {[%emt 0:00:05]} Qxg5+ {[%emt 0:04:13]} 21. hxg5 {[%emt 0:00:19]} g6 {[%emt 0:04:01]} 22. Rxh5 {[%emt 0:04:35]} Ne7 {[%emt 0:04:21]} 23. Qh7 {[%emt 0:00:36]} a3 {[%emt 0:00:01]} 24. Rh4 {[%emt 0:05:38]} axb2+ {[%emt 0:00:06]} 25. Kb1 {[%emt 0:00:37]} Re2 {[%emt 0:01:41]} 26. Rf4 {[%emt 0:00:25]} O-O-O {[%emt 0:01:39]} 27. Qxf7 {[%emt 0:02:34]} Nd5 {[%emt 0:00:00]} 28. Rf3 {[%emt 0:00:54]} c5 {[%emt 0:01:15]} 29. Rb3 {[%emt 0:01:16]} b6 {[%emt 0:02:30]} 30. Qf3 {[%emt 0:01:50]} c4 {[%emt 0:00:17]} 31. Qxe2 {[%emt 0:00:35]} cxb3 {[%emt 0:00:01]} 32. Qxb2 {[%emt 0:01:04]} bxa2+ {[%emt 0:00:43]} 33. Kxa2 {[%emt 0:00:11]} Kb7 {[%emt 0:00:18]} 34. Kb3 {[%emt 0:00:27]} Bb4 {[%emt 0:01:26]} 35. Rc1 {[%emt 0:00:55]} Rf8 {[%emt 0:01:27]} 36. f4 {[%emt 0:00:15]} Rh8 {[%emt 0:00:02]} 37. Qc2 {[%emt 0:00:20]} Rh3 {[%emt 0:00:02]} 38. Qc8+ {[%emt 0:00:16]} Ka7 {[%emt 0:00:01]} 39. Rc7+ {[%emt 0:00:10]} Nxc7 {[%emt 0:00:02]} 40. Qxc7+ {[%emt 0:00:00]} 1-0

[Event "21st Sants Open 2019"]
[Site "Cotxeres de Sants"]
[Date "2019.08.27"]
[Round "5.4"]
[White "Mascaro March, Pedro"]
[Black "Vaibhav, Suri"]
[Result "0-1"]
[ECO "D38"]
[WhiteElo "2376"]
[BlackElo "2591"]
[Annotator "ChessBase"]
[PlyCount "88"]
[EventDate "2019.08.22"]
[EventType "swiss"]
[EventCountry "ESP"]
[SourceTitle "playchess.com"]
[Source "ChessBase"]
[SourceQuality "1"]
[TimeControl "40/5400+30:1800+30"]

1. d4 {[%emt 0:04:47]} d5 {[%emt 0:00:07]} 2. c4 {[%emt 0:00:36]} e6 {[%emt 0:00:08]} 3. Nf3 {[%emt 0:00:07]} Nf6 {[%emt 0:00:15]} 4. Nc3 {[%emt 0:01:42]} Bb4 {[%emt 0:00:24]} 5. Qa4+ {[%emt 0:01:30]} Nc6 {[%emt 0:00:07]} 6. e3 {[%emt 0:01:37]} O-O {[%emt 0:00:12]} 7. Bd2 {[%emt 0:00:24]} Re8 {[%emt 0:04:28]} 8. Be2 {[%emt 0:01:38]} a6 {[%emt 0:08:36]} 9. O-O {[%emt 0:01:59]} dxc4 {[%emt 0:10:24]} 10. Bxc4 {[%emt 0:02:01]} Bd6 {[%emt 0:00:41]} 11. a3 {[%emt 0:07:38]} h6 {[%emt 0:02:44]} 12. b4 {[%emt 0:29:44]} e5 {[%emt 0:22:12]} 13. Qb3 {[%emt 0:02:28]} Qe7 {[%emt 0:08:59]} 14. h3 {[%emt 0:16:22]} e4 {[%emt 0:05:01]} 15. Nh2 {[%emt 0:02:30]} b5 {[%emt 0:04:24]} 16. Be2 {[%emt 0:03:22]} Bf5 {[%emt 0:00:30]} 17. f4 {[%emt 0:02:32]} exf3 {[%emt 0:03:58]} 18. Bxf3 {[%emt 0:01:13]} Bxh2+ {[%emt 0:01:43]} 19. Kxh2 {[%emt 0:00:07]} Bd3 {[%emt 0:01:34]} 20. Rfe1 {[%emt 0:09:11]} Qd6+ {[%emt 0:02:44]} 21. Kh1 {[%emt 0:00:50]} Rad8 {[%emt 0:06:39]} 22. Nd5 {[%emt 0:01:35]} Ne4 {[%emt 0:01:03]} 23. Nf4 {[%emt 0:02:13]} Nxd4 {[%emt 0:02:35]} 24. exd4 {[%emt 0:00:23]} Nxd2 {[%emt 0:00:05]} 25. Qxd3 {[%emt 0:02:44]} Qxf4 {[%emt 0:00:18]} 26. Bc6 {[%emt 0:00:32]} Re6 {[%emt 0:02:17]} 27. Rxe6 {[%emt 0:01:44]} fxe6 {[%emt 0:00:01]} 28. Qe2 {[%emt 0:00:12]} Rd6 {[%emt 0:01:24]} 29. Bb7 {[%emt 0:00:09]} Qxd4 {[%emt 0:02:23]} 30. Rd1 {[%emt 0:00:05]} Ne4 {[%emt 0:06:13]} 31. Rxd4 {[%emt 0:00:14]} Ng3+ {[%emt 0:00:01]} 32. Kh2 {[%emt 0:00:09]} Nxe2 {[%emt 0:00:00]} 33. Rxd6 {[%emt 0:00:28]} cxd6 {[%emt 0:00:01]} 34. Bxa6 {[%emt 0:00:08]} Nc3 {[%emt 0:00:17]} 35. Kg3 {[%emt 0:01:50]} Kf7 {[%emt 0:00:50]} 36. Kf3 {[%emt 0:01:23]} e5 {[%emt 0:00:47]} 37. Ke3 {[%emt 0:00:05]} d5 {[%emt 0:00:28]} 38. Kd3 {[%emt 0:00:21]} d4 {[%emt 0:00:06]} 39. Bb7 {[%emt 0:02:00]} Nb1 {[%emt 0:01:30]} 40. a4 {[%emt 0:00:00]} bxa4 {[%emt 0:00:00]} 41. b5 {[%emt 0:00:35]} Ke7 {[%emt 0:01:16]} 42. b6 {[%emt 0:00:18]} Kd6 {[%emt 0:00:48]} 43. Bd5 {[%emt 0:00:44]} Nc3 {[%emt 0:00:37]} 44. b7 {[%emt 0:00:15]} Kc7 0-1

[Event "21st Sants Open 2019"]
[Site "Cotxeres de Sants"]
[Date "2019.08.27"]
[Round "5.5"]
[White "Idani, Pouya"]
[Black "Avila Pavas, Santiago"]
[Result "1-0"]
[ECO "B39"]
[WhiteElo "2581"]
[BlackElo "2411"]
[Annotator "ChessBase"]
[PlyCount "115"]
[EventDate "2019.08.22"]
[EventType "swiss"]
[EventCountry "ESP"]
[SourceTitle "playchess.com"]
[Source "ChessBase"]
[SourceQuality "1"]
[TimeControl "40/5400+30:1800+30"]

1. e4 c5 2. Nf3 g6 3. c4 Bg7 4. d4 cxd4 5. Nxd4 Nc6 6. Be3 Nf6 7. Nc3 Ng4 8. Qxg4 Nxd4 9. Qd1 e5 10. Be2 d6 11. O-O O-O 12. Nb5 Nxb5 13. cxb5 Be6 14. Qa4 Qe7 15. Rfd1 Rfd8 16. Bc4 a6 17. Bd5 Qd7 18. Qa5 axb5 19. Qb6 Bxd5 20. Rxd5 Qc6 21. Qxb5 Qxb5 22. Rxb5 Rd7 23. a4 f5 24. f3 Rc8 25. Rc1 Rxc1+ 26. Bxc1 Rc7 27. Bd2 Kf7 28. Kf1 Ke6 29. Ke2 Bf6 30. Kd3 h5 31. a5 Bd8 32. Be3 Be7 33. b4 Kd7 34. Rd5 Rc8 35. b5 Ra8 36. Bd2 fxe4+ 37. fxe4 Bd8 38. Bb4 Bxa5 39. Rxd6+ Kc7 40. Bc5 b6 41. Rc6+ Kd7 42. Bxb6 Bxb6 43. Rxb6 g5 44. Ra6 Rf8 45. Rg6 g4 46. Rg5 Kd6 47. Rxh5 Rf2 48. g3 Ra2 49. b6 Rb2 50. Kc4 Rc2+ 51. Kb5 Re2 52. Rh7 Rb2+ 53. Ka6 Kc5 54. Rh6 Rb4 55. Kb7 Kb5 56. Rd6 Rxe4 57. Rd5+ Kc4 58. Kc6 1-0